bitfinex-derivatives/quotes_BNBF0:USTF0_20250112
["timestamp","ask_amount","ask_price","bid_price","bid_amount"]
[1736668977134,1.07981324,694.59,693.28,1.81555336]
[1736668977336,1.07981324,694.59,693.27,1.29124655]
[1736668978237,1.07981324,694.58,693.31,1.29124655]
[1736668979133,1.07981324,694.58,693.32,1.29124655]
[1736668979336,0.28794793,694.57,693.32,1.29124655]
[1736668980040,1.07981324,694.56,693.3,1.29124655]
[1736668980239,0.28795623,694.55,693.3,1.29124655]
[1736668981243,1.36776947,694.55,693.3,1.29124655]
[1736668982045,1.36776947,694.55,693.3,3.10679991]
[1736668982343,1.36776947,694.55,693.31,1.81555336]
[1736668982741,1.36776947,694.55,693.3,1.29124655]
[1736668983845,0.28795623,694.55,693.31,1.29124655]
[1736668985639,0.28795623,694.55,693.1,1.29124655]
[1736668987646,0.28795623,694.55,693.02,1.81583249]
[1736668988044,0.28795623,694.55,693.01,4.28576669]
[1736668988244,0.28795623,694.55,693.01,1.29124655]
[1736668988639,0.28795623,694.55,692.9,2.73670589]
[1736668988640,0.28795623,694.55,692.97,1.29124655]
[1736668989348,0.28795623,694.55,692.96,1.29124655]
[1736668989741,0.28795623,694.55,692.91,2.99452014]
[1736668989939,0.28795623,694.55,692.92,1.81672421]
[1736668991544,0.28795623,694.55,692.92,2.73690499]
[1736668991850,0.28795623,694.55,690.42,2.73690499]
[1736668992050,0.28795623,694.55,693.01,1.2907503]
[1736668992545,0.28795623,694.55,692.98,1.2907503]
[1736668993050,0.28795623,694.55,692.97,1.2907503]
[1736668993849,0.28795623,694.55,692.96,1.2907503]
[1736668995246,0.28795623,694.55,692.95,1.81672421]
[1736668995451,0.28795623,694.55,692.96,2.99452014]
[1736668995651,0.28795623,694.55,692.97,1.81672421]
[1736668997450,0.28795623,694.55,692.95,1.81672421]
[1736668997650,0.28795623,694.55,692.95,2.73711466]
[1736668998750,0.28795623,694.55,692.94,4.02786496]
[1736668998954,0.28795623,694.55,692.95,0.92039045]
[1736668999657,0.28795623,694.55,692.96,1.2907503]
[1736669000355,0.28795623,694.55,692.96,4.02786496]
[1736669000547,0.28795623,694.55,692.97,0.92039045]
[1736669001154,0.28795623,694.55,692.97,3.91491059]
[1736669001352,0.28795623,694.55,692.98,2.73711466]
[1736669001553,0.28795623,694.55,693.01,1.2907503]
[1736669002251,0.28795623,694.55,693.05,1.2907503]
[1736669002949,0.28795623,694.55,693.01,0.92039045]
[1736669002950,0.28795623,694.55,693.07,1.2907503]
[1736669003951,0.28795623,694.55,693.1,1.2907503]
[1736669004757,1.36621847,694.55,693.16,1.2907503]
[1736669005551,1.36621847,694.55,693.17,1.2907503]
[1736669006656,1.07826224,694.54,693.18,1.2907503]
[1736669006856,0.28796452,694.53,693.18,1.2907503]
[1736669007458,1.36622676,694.53,693.2,1.2907503]
[1736669008154,1.07826224,694.52,693.2,1.2907503]
[1736669008353,0.28797281,694.51,693.2,1.2907503]
[1736669008754,1.36623505,694.51,693.21,1.2907503]
[1736669011062,1.07826224,694.5,693.22,1.2907503]
[1736669011958,1.07826224,694.5,693.23,1.2907503]
[1736669012861,0.2879811,694.49,693.23,1.2907503]
[1736669013063,0.2879811,694.49,693.18,3.10747451]
[1736669013261,0.2879811,694.49,693.19,1.81672421]
[1736669013463,0.2879811,694.49,693.18,1.2907503]
[1736669013965,0.2879811,694.49,693.19,1.2907503]
[1736669016865,0.2879811,694.49,693.16,1.81672421]
[1736669017066,0.2879811,694.49,693.15,4.81124435]
[1736669020762,0.2879811,694.49,693.15,6.10199465]
[1736669021064,0.2879811,694.49,693.16,1.81672421]
[1736669021568,0.2879811,694.49,693.16,3.10747451]
[1736669022668,1.07826224,694.45,693.26,1.2907503]
[1736669024165,1.07826224,694.45,693.25,1.2907503]
[1736669025072,1.07826224,694.45,693.27,1.2907503]
[1736669025667,0.2879811,694.49,693.27,1.2907503]
[1736669025668,1.07826224,694.44,693.27,1.2907503]
[1736669026674,1.07826224,694.42,693.31,1.2907503]
[1736669027370,1.07826224,694.43,693.31,1.2907503]
[1736669028369,1.07826224,694.43,693.32,1.2907503]
[1736669033672,1.07826224,694.43,693.32,3.10747451]
[1736669033871,1.07826224,694.42,693.33,1.81672421]
[1736669034075,1.07826224,694.42,693.32,1.81672421]
[1736669034274,1.07826224,694.42,693.31,1.2907503]
[1736669036675,1.07826224,694.41,693.3,1.2907503]
[1736669038074,1.07826224,694.45,693.26,1.2907503]
[1736669038471,0.28800184,694.44,693.26,1.2907503]
[1736669038876,0.28800184,694.44,693.17,2.99452014]
[1736669040572,0.28800184,694.44,693.15,4.81407244]
[1736669042380,0.28800184,694.44,693.15,6.10482274]
[1736669042574,0.28800184,694.44,693.16,1.8195523]
[1736669043778,0.28800184,694.44,693.15,4.81407244]
[1736669044281,0.28800184,694.44,693.16,1.2907503]
[1736669044480,0.28800184,694.44,693.16,3.1103026]
[1736669044880,0.28800184,694.44,693.17,2.99452014]
[1736669045080,0.28800184,694.44,693.17,4.81407244]
[1736669046576,0.28800184,694.44,693.17,1.8195523]
[1736669046774,0.28800184,694.44,693.16,1.2907503]
[1736669046775,0.28800184,694.44,693.16,3.1103026]
[1736669047577,0.28800184,694.44,693.17,0.91854925]
[1736669047778,0.28800184,694.44,693.19,1.2907503]
[1736669048681,0.28800184,694.44,693.32,1.2907503]
[1736669049684,0.28800184,694.44,693.24,2.99452014]
[1736669051484,0.28800184,694.44,693.23,1.8195523]
[1736669051677,0.28800184,694.44,693.22,1.2907503]
[1736669053585,0.28800184,694.44,693.18,1.82009]
[1736669053980,0.28800184,694.44,693.17,2.99452014]
[1736669054183,0.28800184,694.44,693.15,1.82009]
[1736669054380,0.28800184,694.44,693.14,3.0268749]
[1736669054580,0.28800184,694.44,693.19,1.2907503]
[1736669056387,0.28800184,694.44,693.2,1.2907503]
[1736669058682,0.28800184,694.44,693.21,1.2907503]
[1736669059888,0.28800184,694.44,693.21,4.28527044]
[1736669060090,0.28800184,694.44,693.22,1.82009]
[1736669060688,0.28800184,694.44,693.22,3.1108403]
[1736669061289,0.28800184,694.44,693.23,2.99452014]
[1736669061490,0.28800184,694.44,693.23,4.81461014]
[1736669062787,0.28800184,694.44,693.23,1.82009]
[1736669062983,0.28800184,694.44,693.22,1.2907503]
[1736669064093,0.28800184,694.44,693.31,1.2907503]
[1736669068295,1.07826224,694.43,693.28,3.1108403]
[1736669068490,1.07826224,694.43,693.29,2.99452014]
[1736669068690,1.07826224,694.43,693.29,4.81461014]
[1736669069295,0.28800184,694.44,693.3,1.2907503]
[1736669069494,0.28800184,694.44,693.3,3.1108403]
[1736669069895,0.28800184,694.44,693.31,2.99452014]
[1736669070091,0.28800184,694.44,693.31,4.81461014]
[1736669070889,1.36626408,694.44,693.31,4.81461014]
[1736669071094,1.36626408,694.44,693.32,1.82009]
[1736669071294,1.36626408,694.44,693.3,1.82009]
[1736669071693,1.36626408,694.44,693.29,1.2907503]
[1736669074899,0.28800184,694.44,693.31,1.2907503]
[1736669077600,0.28800184,694.44,693.3,3.1108403]
[1736669078501,1.36626408,694.44,693.3,3.1108403]
[1736669078698,1.36626408,694.44,693.31,2.99452014]
[1736669078896,1.36626408,694.44,693.31,4.81461014]
[1736669080402,1.36626408,694.44,693.31,1.82009]
[1736669080703,1.36626408,694.44,693.3,1.2907503]
[1736669081401,0.28800184,694.44,693.32,1.2907503]
[1736669083301,0.28800184,694.44,693.33,1.2907503]
[1736669084905,0.28800184,694.44,693.32,2.99452014]
[1736669085401,0.28800184,694.44,693.23,1.81934777]
[1736669085604,0.28800184,694.44,693.22,1.2907503]
[1736669087005,0.28800184,694.44,693.19,1.2907503]
[1736669087901,0.28800184,694.44,693.18,1.81934777]
[1736669087902,0.28800184,694.44,693.21,1.2907503]
[1736669088706,0.28800184,694.44,693.22,1.2907503]
[1736669089504,0.28800184,694.44,693.22,4.0249407]
[1736669089705,0.28800184,694.44,693.25,1.2907503]
[1736669091110,0.28800184,694.44,693.27,1.2907503]
[1736669091906,0.28800184,694.44,693.24,1.81934777]
[1736669091907,0.28800184,694.44,693.26,1.2907503]
[1736669092708,0.28800184,694.44,693.26,1.81934777]
[1736669093609,0.28800184,694.44,693.23,1.81934777]
[1736669093806,0.28800184,694.44,693.23,0.91440797]
[1736669094111,0.28800184,694.44,693.22,1.2907503]
[1736669094512,0.28800184,694.44,693.28,1.2907503]
[1736669095412,0.28800184,694.44,693.27,1.2907503]
[1736669096112,0.28800184,694.44,693.29,1.2907503]
[1736669096808,0.28800184,694.44,693.3,1.2907503]
[1736669099115,0.28800184,694.44,693.32,1.2907503]
[1736669100116,0.28800184,694.44,693.31,1.2907503]
[1736669102121,0.28800184,694.44,693.33,1.2907503]
[1736669103020,0.28800184,694.44,693.32,2.20515827]
[1736669103719,0.28800184,694.44,693.32,5.19967841]
[1736669103920,0.28800184,694.44,693.33,4.02450604]
[1736669104117,0.28800184,694.44,693.34,0.91440797]
[1736669104922,0.28800184,694.44,693.34,3.90892811]
[1736669105123,0.28800184,694.44,693.35,1.81934777]
[1736669105317,0.28800184,694.44,693.35,2.73375574]
[1736669106523,0.28800184,694.44,693.34,2.73375574]
[1736669107023,0.28800184,694.44,693.32,1.2907503]
[1736669107723,0.28800184,694.44,693.23,2.19606823]
[1736669107724,0.28800184,694.44,693.33,1.2907503]
[1736669109924,0.28800184,694.44,693.32,1.2907503]
[1736669110819,0.28800184,694.44,693.36,1.2907503]
[1736669111426,0.28800184,694.44,693.34,1.2907503]
[1736669112626,0.28800184,694.44,693.35,1.2907503]
[1736669113726,0.28800184,694.44,693.36,1.2907503]
[1736669114827,0.28800184,694.44,693.37,1.2907503]
[1736669115925,0.28800184,694.44,693.35,3.10764643]
[1736669116127,0.28800184,694.44,693.35,6.10394906]
[1736669116327,0.28800184,694.44,693.36,1.81689613]
[1736669117424,0.28800184,694.44,693.31,0.9130543]
[1736669117623,0.28800184,694.44,693.31,2.72995043]
[1736669118629,0.28800184,694.44,693.31,1.81689613]
[1736669118930,0.28800184,694.44,693.3,4.81319876]
[1736669119129,0.28800184,694.44,693.31,1.81689613]
[1736669119429,0.28800184,694.44,693.3,2.99630263]
[1736669119623,0.28800184,694.44,693.28,1.81689613]
[1736669119825,0.28800184,694.44,693.27,4.81319876]
[1736669120429,0.28800184,694.44,693.28,1.81689613]
[1736669120623,0.28800184,694.44,693.27,2.99630263]
[1736669120827,0.28800184,694.44,693.27,3.90968198]
[1736669121025,0.28800184,694.44,693.26,1.81689613]
[1736669121026,0.28800184,694.44,693.28,1.81689613]
[1736669121224,0.28800184,694.44,693.26,4.81319876]
[1736669121831,0.28800184,694.44,693.26,6.10394906]
[1736669122131,0.28800184,694.44,693.27,1.81689613]
[1736669122524,0.28800184,694.44,693.27,4.81319876]
[1736669122926,0.28800184,694.44,693.27,6.10394906]
[1736669123131,0.28800184,694.44,693.28,1.81689613]
[1736669123832,0.28800184,694.44,693.28,6.10394906]
[1736669124034,0.28800184,694.44,693.29,1.81689613]
[1736669124926,0.28800184,694.44,693.29,3.10764643]
[1736669125325,0.28800184,694.44,693.29,6.10394906]
[1736669125526,0.28800184,694.44,693.3,2.72819511]
[1736669125926,0.28800184,694.44,693.36,1.2907503]
[1736669127033,0.28800184,694.44,693.37,1.2907503]
[1736669127733,0.28800184,694.44,693.38,1.2907503]
[1736669128731,0.28800184,694.44,693.33,2.99630263]
[1736669129136,0.28800184,694.44,693.08,1.2907503]
[1736669129835,0.28800184,694.44,693.09,1.2907503]
[1736669134636,0.28800184,694.44,693.1,1.2907503]
[1736669135640,0.28800184,694.44,693.09,1.2907503]
[1736669138037,0.28800184,694.44,693.09,4.01850448]
[1736669138242,0.28800184,694.44,693.1,0.91105118]
[1736669138644,0.28800184,694.44,693.32,1.2907503]
[1736669139540,0.28800184,694.44,693.36,1.2907503]
[1736669140637,0.28800184,694.44,693.32,1.2907503]
[1736669141338,0.28800184,694.44,693.36,1.2907503]
[1736669142649,0.28800184,694.44,693.38,1.2907503]
[1736669143646,0.28800184,694.44,693.28,2.99630263]
[1736669145148,0.28800184,694.44,693.23,1.2907503]
[1736669146052,0.28800184,694.44,693.0,1.2907503]
[1736669147145,0.28800184,694.44,693.02,1.2907503]
[1736669150047,0.28800184,694.44,693.03,1.2907503]
[1736669150852,0.28800184,694.44,693.0,1.2907503]
[1736669152650,0.28800184,694.44,693.01,1.2907503]
[1736669153248,0.28800184,694.44,693.05,1.2907503]
[1736669154855,0.28800184,694.44,693.04,1.2907503]
[1736669155557,0.28800184,694.44,693.12,1.2907503]
[1736669156356,0.28800184,694.44,693.29,1.2907503]
[1736669157564,0.28800184,694.44,693.3,1.2907503]
[1736669160572,0.28800184,694.44,693.4,1.2907503]
[1736669162469,0.28800184,694.44,693.42,1.2907503]
[1736669163269,0.28800184,694.44,693.43,1.2907503]
[1736669164369,0.28800184,694.44,693.44,1.2907503]
[1736669165071,0.28800184,694.44,693.45,1.2907503]
[1736669166173,0.28800184,694.44,693.46,1.2907503]
[1736669167272,0.28800184,694.44,693.38,1.82022093]
[1736669167674,0.28800184,694.44,693.37,2.99974245]
[1736669168070,0.28800184,694.44,693.33,1.2907503]
[1736669168273,0.28800184,694.44,693.33,3.11097123]
[1736669168475,0.28800184,694.44,693.34,1.82022093]
[1736669168874,0.28800184,694.44,693.32,1.2907503]
[1736669169576,0.28800184,694.44,693.32,4.29049275]
[1736669169777,0.28800184,694.44,693.33,3.11097123]
[1736669170778,0.28800184,694.44,693.34,2.99974245]
[1736669170980,0.28800184,694.44,693.34,4.81996338]
[1736669173782,0.28800184,694.44,693.34,6.11071368]
[1736669173973,0.28800184,694.44,693.35,1.82022093]
[1736669175181,0.28800184,694.44,693.35,4.81996338]
[1736669175880,0.28800184,694.44,693.36,0.9092463]
[1736669176081,0.28800184,694.44,693.36,2.72946723]
[1736669176276,0.28800184,694.44,693.36,5.72920968]
[1736669176482,0.28800184,694.44,693.37,2.72946723]
[1736669177284,0.28800184,694.44,693.48,1.2907503]
[1736669177875,0.28800184,694.44,693.17,1.2907503]
[1736669178076,0.28800184,694.44,693.18,0.28852534]
[1736669178878,0.28800184,694.44,693.18,1.57927564]
[1736669180180,0.28800184,694.44,693.18,0.28852534]
[1736669187790,0.28800184,694.44,693.2,1.2907503]
[1736669187990,0.28800184,694.44,693.21,0.28851286]
[1736669190793,0.28800184,694.44,693.33,1.2907503]
[1736669191690,0.28800184,694.44,693.37,1.2907503]
[1736669193688,0.28800184,694.44,693.31,1.2907503]
[1736669194094,0.28800184,694.44,693.31,4.01835971]
[1736669194295,0.28800184,694.44,693.32,0.90796738]
[1736669195093,0.28800184,694.44,693.32,3.90889805]
[1736669195389,0.28800184,694.44,693.33,1.81964203]
[1736669195593,0.28800184,694.44,693.34,1.2907503]
[1736669195792,0.28800184,694.44,693.34,2.19871768]
[1736669196396,0.28800184,694.44,693.34,0.90796738]
[1736669196695,0.28800184,694.44,693.34,3.90889805]
[1736669196890,0.28800184,694.44,693.35,1.81964203]
[1736669197097,0.28800184,694.44,693.35,2.72760941]
[1736669198092,0.28800184,694.44,693.35,4.01835971]
[1736669198297,0.28800184,694.44,693.36,0.90796738]
[1736669198597,0.28800184,694.44,693.36,3.90889805]
[1736669198797,0.28800184,694.44,693.37,1.81964203]
[1736669199098,0.28800184,694.44,693.39,1.2907503]
[1736669199592,0.28800184,694.44,693.38,3.90889805]
[1736669199798,0.28800184,694.44,693.39,1.81964203]
[1736669199998,0.28800184,694.44,693.39,2.72760941]
[1736669201295,0.28800184,694.44,693.37,2.72760941]
[1736669201694,0.28800184,694.44,693.37,5.72854008]
[1736669201892,0.28800184,694.44,693.38,2.72760941]
[1736669202091,0.28800184,694.44,693.38,1.81964203]
[1736669202298,0.28800184,694.44,693.37,6.111323]
[1736669202497,0.28800184,694.44,693.38,1.81964203]
[1736669202897,0.28800184,694.44,693.38,5.72533213]
[1736669203098,0.28800184,694.44,693.39,2.72440146]
[1736669204595,0.28800184,694.44,693.39,1.81964203]
[1736669204799,0.28800184,694.44,693.38,4.8205727]
[1736669205001,0.28800184,694.44,693.38,6.111323]
[1736669205299,0.28800184,694.44,693.39,1.81964203]
[1736669205900,0.28800184,694.44,693.39,4.8205727]
[1736669206097,0.28800184,694.44,693.4,1.81964203]
[1736669206498,0.28800184,694.44,693.39,3.00093067]
[1736669207801,0.28800184,694.44,693.38,0.9043987]
[1736669207994,0.28800184,694.44,693.38,1.81964203]
[1736669208197,0.28800184,694.44,693.37,4.8205727]
[1736669208397,0.28800184,694.44,693.38,1.2907503]
[1736669208601,0.28800184,694.44,693.38,4.01463223]
[1736669208901,0.28800184,694.44,693.38,3.11039233]
[1736669209205,0.28800184,694.44,693.39,3.00093067]
[1736669209400,0.28800184,694.44,693.39,4.8205727]
[1736669210800,0.28800184,694.44,693.4,1.2907503]
[1736669211001,0.28800184,694.44,693.4,6.111323]
[1736669211200,0.28800184,694.44,693.41,1.81964203]
[1736669211799,0.28800184,694.44,693.4,3.00093067]
[1736669212399,0.28800184,694.44,693.4,4.8205727]
[1736669212702,0.28800184,694.44,693.43,1.2907503]
[1736669213297,0.28800184,694.44,693.44,1.2907503]
[1736669214400,0.28800184,694.44,693.41,1.81202427]
[1736669214802,0.28800184,694.44,693.4,3.00093067]
[1736669215502,0.28800184,694.44,693.41,1.2907503]
[1736669215802,0.28800184,694.44,693.41,3.10277457]
[1736669215998,0.28800184,694.44,693.42,1.81202427]
[1736669216402,0.28800184,694.44,693.41,1.2907503]
[1736669217204,0.28800184,694.44,693.42,1.2907503]
[1736669218403,0.28800184,694.44,693.46,1.2907503]
[1736669220106,0.28800184,694.44,693.45,1.2907503]
[1736669221102,0.28800184,694.44,693.43,1.2907503]
[1736669221806,0.28800184,694.44,693.45,1.2907503]
[1736669222906,0.28800184,694.44,693.42,3.00093067]
[1736669223107,0.28800184,694.44,693.4,1.81307438]
[1736669223811,0.28800184,694.44,693.4,0.90341115]
[1736669224108,0.28800184,694.44,693.39,1.2907503]
[1736669224807,0.28800184,694.44,693.43,1.2907503]
[1736669225809,0.28800184,694.44,693.34,3.00093067]
[1736669226510,0.28800184,694.44,693.26,1.81481369]
[1736669226805,0.28800184,694.44,693.25,1.2907503]
[1736669227006,0.28800184,694.44,693.21,1.57926316]
[1736669227710,0.28800184,694.44,693.21,0.28851286]
[1736669251822,0.28800184,694.44,693.24,1.2907503]
[1736669252723,0.28800184,694.44,693.21,0.28851286]
[1736669253525,0.28800184,694.44,693.27,1.2907503]
[1736669254329,0.28800184,694.44,693.28,1.2907503]
[1736669255530,0.28800184,694.44,693.21,0.28851286]
[1736669255531,0.28800184,694.44,693.31,1.2907503]
[1736669257726,0.28800184,694.44,693.32,1.2907503]
[1736669258830,0.28800184,694.44,693.34,1.2907503]
[1736669259325,0.28800184,694.44,693.38,1.2907503]
[1736669259934,0.28800184,694.44,693.42,1.2907503]
[1736669260927,0.28800184,694.44,693.43,1.2907503]
[1736669261532,0.28800184,694.44,693.42,1.2907503]
[1736669262532,0.28800184,694.44,693.44,1.2907503]
[1736669263532,0.28800184,694.44,693.37,1.8149618]
[1736669263533,0.28800184,694.44,693.41,1.2907503]
[1736669264331,0.28800184,694.44,693.42,1.2907503]
[1736669265529,0.28800184,694.44,693.43,1.2907503]
[1736669266130,0.28800184,694.44,693.42,1.2907503]
[1736669267330,0.28800184,694.44,693.44,1.2907503]
[1736669268234,0.28800184,694.44,693.45,1.2907503]
[1736669269235,0.28800184,694.44,693.38,1.2907503]
[1736669269436,0.28800184,694.44,693.38,3.10520063]
[1736669269832,0.28800184,694.44,693.39,1.81450064]
[1736669270034,0.28800184,694.44,693.38,3.10525094]
[1736669270433,0.28800184,694.44,693.39,1.2907503]
[1736669270630,0.28800184,694.44,693.39,3.10525094]
[1736669271337,0.28800184,694.44,693.4,1.2907503]
[1736669272337,0.28800184,694.44,693.4,1.81450064]
[1736669273235,0.28800184,694.44,693.4,4.81543131]
[1736669274540,0.28800184,694.44,693.4,6.10618161]
[1736669274734,0.28800184,694.44,693.41,4.81543131]
[1736669276540,0.28800184,694.44,693.42,1.81450064]
[1736669276742,0.28800184,694.44,693.4,4.81543131]
[1736669278343,0.28800184,694.44,693.41,0.9024355]
[1736669278542,0.28800184,694.44,693.41,2.71693614]
[1736669279043,0.28800184,694.44,693.46,1.2907503]
[1736669280947,0.28800184,694.44,693.47,1.2907503]
[1736669282047,0.28800184,694.44,693.46,1.2907503]
[1736669283646,0.28800184,694.44,693.46,3.10525094]
[1736669283847,0.28800184,694.44,693.47,1.81450064]
[1736669284645,0.28800184,694.44,693.46,1.2907503]
[1736669286146,0.28800184,694.44,693.46,4.00902021]
[1736669286351,0.28800184,694.44,693.46,3.10525094]
[1736669287252,0.28800184,694.44,693.47,0.9039007]
[1736669287452,0.28800184,694.44,693.47,2.71840134]
[1736669287653,0.28800184,694.44,693.47,0.9039007]
[1736669287852,0.28800184,694.44,693.46,1.2907503]
[1736669291952,0.28800184,694.44,693.43,5.19558167]
[1736669292257,0.28800184,694.44,693.44,2.71840134]
[1736669293159,0.28800184,694.44,693.44,4.00915164]
[1736669293359,0.28800184,694.44,693.45,3.90483137]
[1736669293558,0.28800184,694.44,693.46,1.81450064]
[1736669293758,0.28800184,694.44,693.46,2.71840134]
[1736669294660,0.28800184,694.44,693.46,5.71933201]
[1736669294961,0.28800184,694.44,693.47,2.71840134]
[1736669297362,0.28800184,694.44,693.47,1.81450064]
[1736669297667,0.28800184,694.44,693.46,4.81543131]
[1736669297862,0.28800184,694.44,693.46,1.81450064]
[1736669298357,0.28800184,694.44,693.43,2.71759801]
[1736669298557,0.28800184,694.44,693.43,0.90309737]
[1736669298756,0.28800184,694.44,693.42,1.2907503]
[1736669298960,0.28800184,694.44,693.41,1.2907503]
[1736669300464,0.28800184,694.44,693.39,1.81450064]
[1736669301365,0.28800184,694.44,693.35,0.90301692]
[1736669301665,0.28800184,694.44,693.35,3.90394759]
[1736669301866,0.28800184,694.44,693.35,3.00093067]
[1736669302068,0.28800184,694.44,693.37,1.2907503]
[1736669303067,0.28800184,694.44,693.03,1.2907503]
[1736669303763,0.28800184,694.44,693.0,1.2907503]
[1736669305869,0.28800184,694.44,692.99,1.2907503]
[1736669306367,0.28800184,694.44,692.98,1.2907503]
[1736669307168,0.28800184,694.44,692.98,2.19389229]
[1736669307762,0.28800184,694.44,692.98,0.90314199]
[1736669307968,0.28800184,694.44,692.97,2.72435421]
[1736669308364,0.28800184,694.44,692.97,5.72697254]
[1736669308567,0.28800184,694.44,692.98,2.72435421]
[1736669309970,0.28800184,694.44,692.98,5.72697254]
[1736669310170,0.28800184,694.44,692.99,2.72435421]
[1736669311265,0.28800184,694.44,692.98,2.72435421]
[1736669312466,0.28800184,694.44,692.98,5.72697254]
[1736669312666,0.28800184,694.44,693.22,1.2907503]
[1736669313868,0.28800184,694.44,693.14,1.82121222]
[1736669314070,0.28800184,694.44,693.15,3.00261833]
[1736669314274,0.28800184,694.44,693.16,1.82121222]
[1736669315477,0.28800184,694.44,693.08,2.72300446]
[1736669316371,0.28800184,694.44,693.08,5.72562279]
[1736669316576,0.28800184,694.44,693.09,2.72300446]
[1736669317473,0.28800184,694.44,693.09,5.72562279]
[1736669317678,0.28800184,694.44,693.1,2.72300446]
[1736669318380,0.28800184,694.44,693.1,1.82121222]
[1736669318879,0.28800184,694.44,693.1,2.72284533]
[1736669319079,0.28800184,694.44,693.1,1.82121222]
[1736669319275,0.28800184,694.44,693.1,2.72287253]
[1736669319480,0.28800184,694.44,693.1,1.82121222]
[1736669320282,0.28800184,694.44,693.07,2.72285843]
[1736669321884,0.28800184,694.44,693.07,5.72547676]
[1736669322080,0.28800184,694.44,693.08,2.72285843]
[1736669322786,0.28800184,694.44,693.14,1.2907503]
[1736669323986,0.28800184,694.44,693.17,1.2907503]
[1736669324884,0.28800184,694.44,693.2,1.2907503]
[1736669326580,0.28800184,694.44,693.22,1.2907503]
[1736669327580,0.28800184,694.44,693.15,0.90164621]
[1736669327581,0.28800184,694.44,693.2,1.2907503]
[1736669328285,0.28800184,694.44,693.26,1.2907503]
[1736669329284,0.28800184,694.44,693.29,1.2907503]
[1736669330381,0.28800184,694.44,693.31,1.2907503]
[1736669333281,0.28800184,694.44,693.26,1.82121222]
[1736669334282,0.28800184,694.44,693.25,3.00261833]
[1736669334685,0.28800184,694.44,693.24,4.82383055]
[1736669335187,0.28800184,694.44,693.24,6.11458085]
[1736669335487,0.28800184,694.44,693.25,1.82121222]
[1736669336085,0.28800184,694.44,693.25,4.82383055]
[1736669336988,0.28800184,694.44,693.25,6.11458085]
[1736669337181,0.28800184,694.44,693.26,1.82121222]
[1736669337591,0.28800184,694.44,693.26,4.82383055]
[1736669339490,0.28800184,694.44,693.26,6.11458085]
[1736669339688,0.28800184,694.44,693.27,1.82121222]
[1736669340484,0.28800184,694.44,693.27,4.82383055]
[1736669341386,0.28800184,694.44,693.27,6.11458085]
[1736669341589,0.28800184,694.44,693.28,1.82121222]
[1736669341787,0.28800184,694.44,693.28,2.72076211]
[1736669342492,0.28800184,694.44,693.35,1.2907503]
[1736669345291,0.28800184,694.44,693.33,0.89954989]
[1736669345292,0.28800184,694.44,693.37,1.2907503]
[1736669347393,0.28800184,694.44,693.38,1.2907503]
[1736669348996,0.28800184,694.44,693.38,3.11196252]
[1736669350393,0.28800184,694.44,693.39,3.00261833]
[1736669350597,0.28800184,694.44,693.39,4.82383055]
[1736669350797,0.28800184,694.44,693.4,1.82121222]
[1736669351194,0.28800184,694.44,693.39,3.00261833]
[1736669351598,0.28800184,694.44,693.37,1.82121222]
[1736669351893,0.28800184,694.44,693.36,1.2907503]
[1736669352299,0.28800184,694.44,693.35,1.82121222]
[1736669352894,0.28800184,694.44,693.35,4.82383055]
[1736669354596,0.28800184,694.44,693.36,1.82121222]
[1736669355493,0.28800184,694.44,693.3,3.00261833]
[1736669356501,0.28800184,694.44,693.3,4.82383055]
[1736669356799,0.28800184,694.44,693.31,1.82121222]
[1736669357099,0.28800184,694.44,693.27,3.00261833]
[1736669357100,0.28800184,694.44,693.27,6.11458085]
[1736669357293,0.28800184,694.44,693.28,1.82121222]
[1736669357898,0.28800184,694.44,693.27,4.82383055]
[1736669359100,0.28800184,694.44,693.28,1.82121222]
[1736669359694,0.28800184,694.44,693.28,0.89991462]
[1736669359899,0.28800184,694.44,693.28,2.72112684]
[1736669360300,0.28800184,694.44,693.27,0.89991462]
[1736669361000,0.28800184,694.44,693.28,1.2907503]
[1736669361500,0.28800184,694.44,693.28,4.01187714]
[1736669361699,0.28800184,694.44,693.29,0.89991462]
[1736669362103,0.28800184,694.44,693.29,2.19066492]
[1736669362802,0.28800184,694.44,693.28,3.11196252]
[1736669363002,0.28800184,694.44,693.29,3.00261833]
[1736669363202,0.28800184,694.44,693.29,4.82383055]
[1736669363601,0.28800184,694.44,693.29,3.00261833]
[1736669364602,0.28800184,694.44,693.29,1.82121222]
[1736669364899,0.28800184,694.44,693.27,1.82121222]
[1736669365099,0.28800184,694.44,693.27,2.72121646]
[1736669366305,0.28800184,694.44,693.25,4.01196676]
[1736669366503,0.28800184,694.44,693.26,0.90000424]
[1736669367104,0.28800184,694.44,693.28,1.2907503]
[1736669367900,0.28800184,694.44,693.28,2.19075454]
[1736669368204,0.28800184,694.44,693.3,1.2907503]
[1736669369405,0.28800184,694.44,693.3,2.19075454]
[1736669369803,0.28800184,694.44,693.31,1.2907503]
[1736669370707,0.28800184,694.44,693.31,4.01196676]
[1736669370907,0.28800184,694.44,693.32,0.90000424]
[1736669371508,0.28800184,694.44,693.32,3.90262257]
[1736669371804,0.28800184,694.44,693.33,1.82121222]
[1736669372007,0.28800184,694.44,693.33,2.72121646]
[1736669372602,0.28800184,694.44,693.33,4.01196676]
[1736669372802,0.28800184,694.44,693.34,0.90000424]
[1736669373307,0.28800184,694.44,693.34,3.90262257]